[Event "Titled Tuesday Blitz November 29 Early 2022"]
[White "Buscar, Michael"]
[Black "Mitrovic, Darko R"]
[WhiteFideId "2603616"]
[BlackFideId "927023"]
[WhiteElo "2010"]
[BlackElo "2150"]
[Result "1/2-1/2"]
[Round "10"]
[TimeControl "180+1"]
[Date "2022.11.30"]
[WhiteClock "0:00:03"]
[BlackClock "0:00:02"]

1. c4 {[%clk 0:03:00]}  e5 {[%clk 0:02:41]} 2. Nf3 {[%clk 0:02:54]}  Nc6 {[%clk 0:02:40]} 3. Nc3 {[%clk 0:02:52]}  g6 {[%clk 0:02:35]} 4. g3 {[%clk 0:02:51]}  Bg7 {[%clk 0:02:35]} 5. Bg2 {[%clk 0:02:51]}  f5 {[%clk 0:02:34]} 6. O-O {[%clk 0:02:49]}  Nf6 {[%clk 0:02:34]} 7. d4 {[%clk 0:02:44]}  e4 {[%clk 0:02:31]} 8. Ne5 {[%clk 0:02:44]}  O-O {[%clk 0:02:28]} 9. Bg5 {[%clk 0:02:32]}  h6 {[%clk 0:02:08]} 10. Be3 {[%clk 0:02:29]}  Nxe5 {[%clk 0:02:03]} 11. dxe5 {[%clk 0:02:27]}  Ng4 {[%clk 0:02:02]} 12. Qd5+ {[%clk 0:02:19]}  Kh7 {[%clk 0:02:02]} 13. Bc5 {[%clk 0:02:13]}  Re8 {[%clk 0:01:52]} 14. f4 {[%clk 0:01:57]}  exf3 {[%clk 0:01:45]} 15. exf3 {[%clk 0:01:57]}  Rxe5 {[%clk 0:01:39]} 16. fxg4 {[%clk 0:01:44]}  Rxd5 {[%clk 0:01:35]} 17. Nxd5 {[%clk 0:01:45]}  d6 {[%clk 0:01:28]} 18. Be3 {[%clk 0:01:41]}  Bxb2 {[%clk 0:01:23]} 19. Rae1 {[%clk 0:01:40]}  Be5 {[%clk 0:01:15]} 20. gxf5 {[%clk 0:01:37]}  Bxf5 {[%clk 0:01:14]} 21. g4 {[%clk 0:01:36]}  Be6 {[%clk 0:01:09]} 22. Be4 {[%clk 0:01:35]}  c6 {[%clk 0:01:00]} 23. Nf4 {[%clk 0:01:34]}  Bxf4 {[%clk 0:00:49]} 24. Rxf4 {[%clk 0:01:34]}  d5 {[%clk 0:00:31]} 25. cxd5 {[%clk 0:01:31]}  Bxd5 {[%clk 0:00:30]} 26. Bb1 {[%clk 0:01:28]}  Qe7 {[%clk 0:00:20]} 27. Bd2 {[%clk 0:01:23]}  Qd7 {[%clk 0:00:19]} 28. Bb4 {[%clk 0:01:20]}  Re8 {[%clk 0:00:18]} 29. Ref1 {[%clk 0:01:16]}  Re2 {[%clk 0:00:15]} 30. R1f2 {[%clk 0:01:09]}  Rxf2 {[%clk 0:00:15]} 31. Kxf2 {[%clk 0:01:09]}  Qe6 {[%clk 0:00:13]} 32. h4 {[%clk 0:01:03]}  Bxa2 {[%clk 0:00:10]} 33. Bc2 {[%clk 0:00:57]}  Bb3 {[%clk 0:00:09]} 34. Bd3 {[%clk 0:00:57]}  Kg7 {[%clk 0:00:07]} 35. h5 {[%clk 0:00:55]}  gxh5 {[%clk 0:00:06]} 36. gxh5 {[%clk 0:00:55]}  Bd5 {[%clk 0:00:05]} 37. Bc3+ {[%clk 0:00:53]}  Kg8 {[%clk 0:00:05]} 38. Bf5 {[%clk 0:00:47]}  Qd6 {[%clk 0:00:04]} 39. Rg4+ {[%clk 0:00:47]}  Kf7 {[%clk 0:00:03]} 40. Rg7+ {[%clk 0:00:37]}  Kf8 {[%clk 0:00:03]} 41. Rg4 {[%clk 0:00:32]}  Qc5+ {[%clk 0:00:02]} 42. Bd4 {[%clk 0:00:31]}  Qc1 {[%clk 0:00:02]} 43. Bg7+ {[%clk 0:00:20]}  Kf7 {[%clk 0:00:01]} 44. Bd4 {[%clk 0:00:14]}  Qh1 {[%clk 0:00:01]} 45. Bg6+ {[%clk 0:00:13]}  Kf8 {[%clk 0:00:01]} 46. Rf4+ {[%clk 0:00:13]}  Ke7 {[%clk 0:00:02]} 47. Bc5+ {[%clk 0:00:11]}  Kd7 {[%clk 0:00:02]} 48. Bf5+ {[%clk 0:00:10]}  Ke8 {[%clk 0:00:02]} 49. Bg6+ {[%clk 0:00:10]}  Kd7 {[%clk 0:00:02]} 50. Bf5+ {[%clk 0:00:02]}  Ke8 {[%clk 0:00:02]} 51. Bg6+ {[%clk 0:00:03]}  Kd7 {[%clk 0:00:02]} 1/2-1/2


[Site "https://www.chess.com"]

[Event "Titled Tuesday Blitz November 29 Early 2022"]
[White "Clawitter, Craig"]
[Black "Dudzinski, Pawel"]
[WhiteFideId "2023105"]
[BlackFideId "1117890"]
[WhiteElo "2268"]
[BlackElo "2086"]
[Result "1-0"]
[Round "10"]
[TimeControl "180+1"]
[Date "2022.11.30"]
[WhiteClock "0:00:20"]
[BlackClock "0:00:02"]

1. e4 {[%clk 0:02:57]}  c6 {[%clk 0:03:00]} 2. Nf3 {[%clk 0:02:57]}  d5 {[%clk 0:03:01]} 3. e5 {[%clk 0:02:58]}  d4 {[%clk 0:03:00]} 4. c3 {[%clk 0:02:54]}  dxc3 {[%clk 0:02:59]} 5. Nxc3 {[%clk 0:02:49]}  Bg4 {[%clk 0:02:56]} 6. Be2 {[%clk 0:02:49]}  e6 {[%clk 0:02:55]} 7. d4 {[%clk 0:02:49]}  Ne7 {[%clk 0:02:55]} 8. O-O {[%clk 0:02:45]}  Nd5 {[%clk 0:02:55]} 9. Ne4 {[%clk 0:02:43]}  Be7 {[%clk 0:02:52]} 10. Bg5 {[%clk 0:02:32]}  Bxf3 {[%clk 0:02:46]} 11. Nd6+ {[%clk 0:02:32]}  Qxd6 {[%clk 0:02:21]} 12. exd6 {[%clk 0:02:25]}  Bxe2 {[%clk 0:02:21]} 13. Qxe2 {[%clk 0:01:50]}  Bxg5 {[%clk 0:02:19]} 14. f4 {[%clk 0:01:47]}  Bf6 {[%clk 0:02:18]} 15. f5 {[%clk 0:01:46]}  Bxd4+ {[%clk 0:02:16]} 16. Kh1 {[%clk 0:01:46]}  e5 {[%clk 0:02:16]} 17. Rad1 {[%clk 0:01:36]}  O-O {[%clk 0:02:14]} 18. f6 {[%clk 0:01:35]}  Nxf6 {[%clk 0:02:14]} 19. Rxf6 {[%clk 0:01:28]}  gxf6 {[%clk 0:02:15]} 20. Qg4+ {[%clk 0:01:11]}  Kh8 {[%clk 0:02:14]} 21. Qf5 {[%clk 0:01:11]}  Rg8 {[%clk 0:00:18]} 22. Rd3 {[%clk 0:00:54]}  Na6 {[%clk 0:00:15]} 23. Qxf6+ {[%clk 0:00:49]}  Rg7 {[%clk 0:00:15]} 24. Rg3 {[%clk 0:00:49]}  Rg8 {[%clk 0:00:14]} 25. d7 {[%clk 0:00:49]}  Bb6 {[%clk 0:00:06]} 26. Rxg7 {[%clk 0:00:43]}  Rxg7 {[%clk 0:00:05]} 27. d8=Q+ {[%clk 0:00:42]}  Bxd8 {[%clk 0:00:05]} 28. Qxd8+ {[%clk 0:00:43]}  Rg8 {[%clk 0:00:06]} 29. Qf6+ {[%clk 0:00:43]}  Rg7 {[%clk 0:00:05]} 30. Qxe5 {[%clk 0:00:36]}  h6 {[%clk 0:00:05]} 31. h3 {[%clk 0:00:30]}  Kh7 {[%clk 0:00:04]} 32. Qf5+ {[%clk 0:00:27]}  Rg6 {[%clk 0:00:03]} 33. Qxf7+ {[%clk 0:00:27]}  Rg7 {[%clk 0:00:04]} 34. Qf5+ {[%clk 0:00:27]}  Kg8 {[%clk 0:00:04]} 35. g4 {[%clk 0:00:24]}  c5 {[%clk 0:00:05]} 36. Qd5+ {[%clk 0:00:22]}  Kh7 {[%clk 0:00:04]} 37. a3 {[%clk 0:00:21]}  b6 {[%clk 0:00:04]} 38. Qd3+ {[%clk 0:00:20]}  Kh8 {[%clk 0:00:03]} 39. Qxa6 {[%clk 0:00:20]}  Rd7 {[%clk 0:00:02]} 40. b4 {[%clk 0:00:20]}  Rd1+ {[%clk 0:00:02]} 41. Kg2 {[%clk 0:00:20]}  Rd2+ {[%clk 0:00:03]} 42. Kf3 {[%clk 0:00:21]}  Ra2 {[%clk 0:00:02]} 43. bxc5 {[%clk 0:00:20]}  Rxa3+ {[%clk 0:00:02]} 44. Qxa3 {[%clk 0:00:20]} 1-0


[Site "https://www.chess.com"]

[Event "Titled Tuesday Blitz November 29 Early 2022"]
[White "Csonka, Balazs"]
[Black "Fromm, Marius"]
[WhiteFideId "742910"]
[BlackFideId "12993190"]
[WhiteElo "2404"]
[BlackElo "2325"]
[Result "0-1"]
[Round "10"]
[TimeControl "180+1"]
[Date "2022.11.30"]
[WhiteClock "0:00:02"]
[BlackClock "0:00:12"]

1. d4 {[%clk 0:03:00]}  Nf6 {[%clk 0:02:59]} 2. c4 {[%clk 0:02:55]}  c5 {[%clk 0:03:00]} 3. Nf3 {[%clk 0:02:53]}  e6 {[%clk 0:02:59]} 4. d5 {[%clk 0:02:48]}  exd5 {[%clk 0:03:00]} 5. cxd5 {[%clk 0:02:49]}  d6 {[%clk 0:03:01]} 6. Nc3 {[%clk 0:02:48]}  g6 {[%clk 0:03:02]} 7. Qa4+ {[%clk 0:02:43]}  Nbd7 {[%clk 0:02:57]} 8. Bf4 {[%clk 0:02:29]}  a6 {[%clk 0:02:57]} 9. e4 {[%clk 0:02:28]}  Rb8 {[%clk 0:02:30]} 10. e5 {[%clk 0:01:49]}  b5 {[%clk 0:02:28]} 11. Qc2 {[%clk 0:01:39]}  dxe5 {[%clk 0:02:28]} 12. Nxe5 {[%clk 0:01:39]}  Nxe5 {[%clk 0:02:27]} 13. Bxe5 {[%clk 0:01:40]}  Bd6 {[%clk 0:02:28]} 14. Bxf6 {[%clk 0:00:53]}  Qxf6 {[%clk 0:02:27]} 15. Bd3 {[%clk 0:00:53]}  O-O {[%clk 0:02:23]} 16. O-O {[%clk 0:00:51]}  c4 {[%clk 0:02:17]} 17. Be2 {[%clk 0:00:51]}  Re8 {[%clk 0:02:10]} 18. Ne4 {[%clk 0:00:49]}  Bxh2+ {[%clk 0:02:01]} 19. Kxh2 {[%clk 0:00:47]}  Qh4+ {[%clk 0:02:01]} 20. Kg1 {[%clk 0:00:48]}  Qxe4 {[%clk 0:02:01]} 21. Qxe4 {[%clk 0:00:32]}  Rxe4 {[%clk 0:02:02]} 22. Bf3 {[%clk 0:00:32]}  Rd4 {[%clk 0:02:03]} 23. a4 {[%clk 0:00:30]}  Bb7 {[%clk 0:01:57]} 24. axb5 {[%clk 0:00:24]}  axb5 {[%clk 0:01:58]} 25. Rfd1 {[%clk 0:00:16]}  Rxd1+ {[%clk 0:01:58]} 26. Rxd1 {[%clk 0:00:17]}  Rd8 {[%clk 0:01:58]} 27. Kf1 {[%clk 0:00:10]}  Kf8 {[%clk 0:01:57]} 28. Ke2 {[%clk 0:00:11]}  Ke8 {[%clk 0:01:49]} 29. Ke3 {[%clk 0:00:06]}  Kd7 {[%clk 0:01:49]} 30. Kd4 {[%clk 0:00:04]}  Kd6 {[%clk 0:01:49]} 31. b3 {[%clk 0:00:05]}  cxb3 {[%clk 0:01:48]} 32. Rb1 {[%clk 0:00:05]}  Rc8 {[%clk 0:01:47]} 33. Rxb3 {[%clk 0:00:05]}  Rc5 {[%clk 0:01:37]} 34. Be2 {[%clk 0:00:02]}  Rxd5+ {[%clk 0:01:36]} 35. Ke3 {[%clk 0:00:03]}  Bc6 {[%clk 0:01:35]} 36. f4 {[%clk 0:00:03]}  h6 {[%clk 0:01:32]} 37. g3 {[%clk 0:00:04]}  g5 {[%clk 0:01:29]} 38. fxg5 {[%clk 0:00:04]}  hxg5 {[%clk 0:01:30]} 39. Rb2 {[%clk 0:00:04]}  Re5+ {[%clk 0:01:30]} 40. Kd4 {[%clk 0:00:02]}  Re4+ {[%clk 0:01:30]} 41. Kd3 {[%clk 0:00:03]}  Ra4 {[%clk 0:01:27]} 42. Ke3 {[%clk 0:00:02]}  Ra3+ {[%clk 0:01:26]} 43. Kf2 {[%clk 0:00:03]}  Kc5 {[%clk 0:01:26]} 44. Rc2+ {[%clk 0:00:03]}  Kb6 {[%clk 0:01:23]} 45. Rb2 {[%clk 0:00:03]}  f6 {[%clk 0:01:21]} 46. Bf1 {[%clk 0:00:03]}  Ra4 {[%clk 0:01:18]} 47. Be2 {[%clk 0:00:03]}  b4 {[%clk 0:01:19]} 48. Bd1 {[%clk 0:00:03]}  Kc5 {[%clk 0:01:12]} 49. Bxa4 {[%clk 0:00:02]}  Bxa4 {[%clk 0:01:13]} 50. Ke3 {[%clk 0:00:02]}  Kc4 {[%clk 0:01:14]} 51. Kd2 {[%clk 0:00:03]}  b3 {[%clk 0:01:12]} 52. Rb1 {[%clk 0:00:03]}  Bd7 {[%clk 0:01:08]} 53. Rf1 {[%clk 0:00:03]}  f5 {[%clk 0:01:07]} 54. Rf3 {[%clk 0:00:03]}  Be6 {[%clk 0:01:05]} 55. Kc1 {[%clk 0:00:03]}  Kd4 {[%clk 0:01:05]} 56. Kd2 {[%clk 0:00:03]}  Bd5 {[%clk 0:00:42]} 57. Rf2 {[%clk 0:00:03]}  Be4 {[%clk 0:00:40]} 58. Kd1 {[%clk 0:00:02]}  Kc3 {[%clk 0:00:39]} 59. Kc1 {[%clk 0:00:02]}  Bd3 {[%clk 0:00:21]} 60. Rb2 {[%clk 0:00:03]}  Bc4 {[%clk 0:00:13]} 61. Rf2 {[%clk 0:00:02]}  Bd3 {[%clk 0:00:13]} 62. Rb2 {[%clk 0:00:02]}  Be4 {[%clk 0:00:13]} 63. g4 {[%clk 0:00:02]}  fxg4 {[%clk 0:00:12]} 64. Rc2+ {[%clk 0:00:02]}  Kd4 {[%clk 0:00:12]} 65. Rb2 {[%clk 0:00:02]}  Bd5 {[%clk 0:00:12]} 66. Rd2+ {[%clk 0:00:01]}  Ke5 {[%clk 0:00:12]} 67. Re2+ {[%clk 0:00:02]}  Kf4 {[%clk 0:00:13]} 68. Rd2 {[%clk 0:00:01]}  Be4 {[%clk 0:00:13]} 69. Rf2+ {[%clk 0:00:01]}  Bf3 {[%clk 0:00:13]} 70. Re2 {[%clk 0:00:02]}  Bxe2 {[%clk 0:00:12]} 0-1


[Site "https://www.chess.com"]

[Event "Titled Tuesday Blitz November 29 Early 2022"]
[White "Czopor, Maciej"]
[Black "Hambleton, Aman"]
[WhiteFideId "21805431"]
[BlackFideId "2606577"]
[WhiteElo "2324"]
[BlackElo "2538"]
[Result "0-1"]
[Round "10"]
[TimeControl "180+1"]
[Date "2022.11.30"]
[WhiteClock "0:00:17"]
[BlackClock "0:00:04"]

1. c4 {[%clk 0:03:00]}  c5 {[%clk 0:02:59]} 2. Nc3 {[%clk 0:03:00]}  b6 {[%clk 0:03:00]} 3. Nf3 {[%clk 0:02:59]}  Bb7 {[%clk 0:03:00]} 4. g3 {[%clk 0:02:59]}  Bxf3 {[%clk 0:03:00]} 5. exf3 {[%clk 0:03:00]}  Nc6 {[%clk 0:03:01]} 6. Bg2 {[%clk 0:03:00]}  g6 {[%clk 0:03:01]} 7. O-O {[%clk 0:03:01]}  Bg7 {[%clk 0:03:02]} 8. f4 {[%clk 0:03:00]}  Nh6 {[%clk 0:03:02]} 9. d3 {[%clk 0:02:57]}  Nf5 {[%clk 0:03:02]} 10. Re1 {[%clk 0:02:54]}  Rc8 {[%clk 0:03:00]} 11. Rb1 {[%clk 0:02:49]}  d6 {[%clk 0:02:58]} 12. Bd2 {[%clk 0:02:50]}  h5 {[%clk 0:02:55]} 13. h4 {[%clk 0:02:50]}  Qd7 {[%clk 0:02:55]} 14. a3 {[%clk 0:02:49]}  O-O {[%clk 0:02:55]} 15. b4 {[%clk 0:02:48]}  e6 {[%clk 0:02:54]} 16. Ne4 {[%clk 0:02:47]}  Rfd8 {[%clk 0:02:51]} 17. Ng5 {[%clk 0:02:40]}  Ncd4 {[%clk 0:02:30]} 18. Be4 {[%clk 0:02:26]}  Bf6 {[%clk 0:02:29]} 19. Be3 {[%clk 0:02:14]}  d5 {[%clk 0:02:20]} 20. cxd5 {[%clk 0:02:13]}  exd5 {[%clk 0:02:21]} 21. Bg2 {[%clk 0:02:11]}  c4 {[%clk 0:02:15]} 22. dxc4 {[%clk 0:02:07]}  dxc4 {[%clk 0:02:16]} 23. Ne4 {[%clk 0:02:07]}  Bg7 {[%clk 0:02:17]} 24. Rc1 {[%clk 0:02:00]}  Nb3 {[%clk 0:01:32]} 25. Qxd7 {[%clk 0:01:56]}  Rxd7 {[%clk 0:01:33]} 26. Rc2 {[%clk 0:01:55]}  Nfd4 {[%clk 0:01:23]} 27. Ra2 {[%clk 0:01:46]}  c3 {[%clk 0:01:19]} 28. Bh3 {[%clk 0:01:39]}  f5 {[%clk 0:00:27]} 29. Ng5 {[%clk 0:01:39]}  c2 {[%clk 0:00:28]} 30. Bf1 {[%clk 0:01:22]}  Bf6 {[%clk 0:00:14]} 31. Ba6 {[%clk 0:00:46]}  Rcc7 {[%clk 0:00:09]} 32. Bxd4 {[%clk 0:00:34]}  c1=Q {[%clk 0:00:05]} 33. Bxf6 {[%clk 0:00:20]}  Qxe1+ {[%clk 0:00:05]} 34. Kg2 {[%clk 0:00:21]}  Rd2 {[%clk 0:00:04]} 35. Rxd2 {[%clk 0:00:18]}  Nxd2 {[%clk 0:00:04]} 36. Be5 {[%clk 0:00:17]}  Rc1 {[%clk 0:00:04]} 0-1


[Site "https://www.chess.com"]

[Event "Titled Tuesday Blitz November 29 Early 2022"]
[White "Devaev, Alexander"]
[Black "Schut, Han"]
[WhiteFideId "4169395"]
[BlackFideId "1005561"]
[WhiteElo "2225"]
[BlackElo "2024"]
[Result "0-1"]
[Round "10"]
[TimeControl "180+1"]
[Date "2022.11.30"]
[WhiteClock "0:00:01"]
[BlackClock "0:00:11"]

1. d4 {[%clk 0:02:57]}  Nf6 {[%clk 0:02:55]} 2. c4 {[%clk 0:02:57]}  g6 {[%clk 0:02:55]} 3. Nc3 {[%clk 0:02:57]}  d5 {[%clk 0:02:55]} 4. Nf3 {[%clk 0:02:57]}  Bg7 {[%clk 0:02:55]} 5. Bg5 {[%clk 0:02:58]}  Ne4 {[%clk 0:02:55]} 6. cxd5 {[%clk 0:02:58]}  Nxg5 {[%clk 0:02:54]} 7. Nxg5 {[%clk 0:02:59]}  e6 {[%clk 0:02:55]} 8. Nf3 {[%clk 0:02:59]}  exd5 {[%clk 0:02:55]} 9. b4 {[%clk 0:03:00]}  Qd6 {[%clk 0:02:55]} 10. Qb3 {[%clk 0:03:01]}  c6 {[%clk 0:02:51]} 11. e3 {[%clk 0:03:00]}  a5 {[%clk 0:02:43]} 12. b5 {[%clk 0:02:44]}  Be6 {[%clk 0:02:39]} 13. Be2 {[%clk 0:02:42]}  c5 {[%clk 0:02:40]} 14. O-O {[%clk 0:02:11]}  c4 {[%clk 0:02:37]} 15. Qc2 {[%clk 0:02:07]}  f5 {[%clk 0:02:26]} 16. Ng5 {[%clk 0:01:55]}  Bg8 {[%clk 0:02:05]} 17. h4 {[%clk 0:01:54]}  h6 {[%clk 0:02:05]} 18. Nh3 {[%clk 0:01:54]}  Bf7 {[%clk 0:02:03]} 19. Bf3 {[%clk 0:01:53]}  Nd7 {[%clk 0:01:58]} 20. Rab1 {[%clk 0:01:33]}  b6 {[%clk 0:01:50]} 21. Nf4 {[%clk 0:00:53]}  Nf6 {[%clk 0:01:50]} 22. g3 {[%clk 0:00:49]}  g5 {[%clk 0:01:46]} 23. hxg5 {[%clk 0:00:18]}  hxg5 {[%clk 0:01:47]} 24. Nfe2 {[%clk 0:00:19]}  Ne4 {[%clk 0:01:40]} 25. Bg2 {[%clk 0:00:13]}  Qh6 {[%clk 0:01:34]} 26. Rfc1 {[%clk 0:00:11]}  Qh2+ {[%clk 0:00:55]} 27. Kf1 {[%clk 0:00:11]}  O-O-O {[%clk 0:00:47]} 28. Ng1 {[%clk 0:00:10]}  Bh5 {[%clk 0:00:41]} 29. Nxe4 {[%clk 0:00:05]}  fxe4 {[%clk 0:00:40]} 30. Bxe4 {[%clk 0:00:06]}  dxe4 {[%clk 0:00:22]} 31. Qxc4+ {[%clk 0:00:05]}  Kd7 {[%clk 0:00:17]} 32. Qc7+ {[%clk 0:00:03]}  Ke8 {[%clk 0:00:17]} 33. Qxg7 {[%clk 0:00:02]}  Bf3 {[%clk 0:00:14]} 34. Qe5+ {[%clk 0:00:02]}  Kf8 {[%clk 0:00:13]} 35. Qf5+ {[%clk 0:00:02]}  Ke8 {[%clk 0:00:12]} 36. Qg6+ {[%clk 0:00:02]}  Kf8 {[%clk 0:00:12]} 37. Qf6+ {[%clk 0:00:02]}  Ke8 {[%clk 0:00:11]} 38. Rc7 {[%clk 0:00:01]}  Qxg1+ {[%clk 0:00:11]} 0-1


[Site "https://www.chess.com"]

[Event "Titled Tuesday Blitz November 29 Early 2022"]
[White "Dubov, Daniil"]
[Black "Bortnyk, Olexandr"]
[WhiteFideId "24126055"]
[BlackFideId "14120828"]
[WhiteElo "2791"]
[BlackElo "2723"]
[Result "1-0"]
[Round "10"]
[TimeControl "180+1"]
[Date "2022.11.29"]
[WhiteClock "0:00:10"]
[BlackClock "0:00:04"]

1. e4 {[%clk 0:03:00]}  Nf6 {[%clk 0:02:59]} 2. e5 {[%clk 0:02:59]}  Nd5 {[%clk 0:02:59]} 3. d4 {[%clk 0:02:59]}  d6 {[%clk 0:02:59]} 4. Nf3 {[%clk 0:02:59]}  dxe5 {[%clk 0:03:00]} 5. Nxe5 {[%clk 0:02:59]}  c6 {[%clk 0:03:00]} 6. Be2 {[%clk 0:02:58]}  Bf5 {[%clk 0:03:00]} 7. O-O {[%clk 0:02:58]}  Nd7 {[%clk 0:03:00]} 8. Nf3 {[%clk 0:02:57]}  e6 {[%clk 0:03:01]} 9. c4 {[%clk 0:02:56]}  N5f6 {[%clk 0:03:01]} 10. Nc3 {[%clk 0:02:55]}  Bd6 {[%clk 0:03:00]} 11. Nh4 {[%clk 0:02:52]}  Bg6 {[%clk 0:02:59]} 12. g3 {[%clk 0:02:51]}  O-O {[%clk 0:02:59]} 13. Nxg6 {[%clk 0:02:51]}  hxg6 {[%clk 0:02:59]} 14. Be3 {[%clk 0:02:45]}  Qc7 {[%clk 0:02:51]} 15. Rc1 {[%clk 0:02:44]}  Rfe8 {[%clk 0:02:35]} 16. Bf3 {[%clk 0:02:23]}  e5 {[%clk 0:02:16]} 17. c5 {[%clk 0:02:22]}  Bf8 {[%clk 0:02:11]} 18. d5 {[%clk 0:02:23]}  Bxc5 {[%clk 0:01:47]} 19. dxc6 {[%clk 0:02:22]}  bxc6 {[%clk 0:01:40]} 20. Nb5 {[%clk 0:01:52]}  Qb6 {[%clk 0:01:10]} 21. Nd6 {[%clk 0:01:52]}  Bxe3 {[%clk 0:01:07]} 22. Rxc6 {[%clk 0:01:51]}  Qxb2 {[%clk 0:00:52]} 23. fxe3 {[%clk 0:01:37]}  e4 {[%clk 0:00:42]} 24. Nxe8 {[%clk 0:01:32]}  Rxe8 {[%clk 0:00:39]} 25. Be2 {[%clk 0:01:25]}  Qxa2 {[%clk 0:00:37]} 26. Bc4 {[%clk 0:01:22]}  Qa3 {[%clk 0:00:24]} 27. Bxf7+ {[%clk 0:01:21]}  Kxf7 {[%clk 0:00:18]} 28. Qxd7+ {[%clk 0:01:21]}  Re7 {[%clk 0:00:18]} 29. Qd5+ {[%clk 0:01:20]}  Kf8 {[%clk 0:00:19]} 30. Rc8+ {[%clk 0:01:11]}  Re8 {[%clk 0:00:19]} 31. Qc5+ {[%clk 0:00:37]}  Qxc5 {[%clk 0:00:18]} 32. Rxc5 {[%clk 0:00:38]}  Re7 {[%clk 0:00:14]} 33. Ra1 {[%clk 0:00:37]}  Kg8 {[%clk 0:00:13]} 34. Rca5 {[%clk 0:00:36]}  Ng4 {[%clk 0:00:10]} 35. Rxa7 {[%clk 0:00:36]}  Rxa7 {[%clk 0:00:10]} 36. Rxa7 {[%clk 0:00:36]}  Nxe3 {[%clk 0:00:11]} 37. Re7 {[%clk 0:00:35]}  Nd5 {[%clk 0:00:10]} 38. Rxe4 {[%clk 0:00:35]}  Nf6 {[%clk 0:00:11]} 39. Ra4 {[%clk 0:00:35]}  Kh7 {[%clk 0:00:09]} 40. Ra5 {[%clk 0:00:34]}  Ne4 {[%clk 0:00:09]} 41. Kg2 {[%clk 0:00:34]}  Nf6 {[%clk 0:00:10]} 42. Kf3 {[%clk 0:00:34]}  Nh5 {[%clk 0:00:10]} 43. Ke4 {[%clk 0:00:25]}  Nf6+ {[%clk 0:00:11]} 44. Kf4 {[%clk 0:00:25]}  Nh5+ {[%clk 0:00:10]} 45. Kg5 {[%clk 0:00:24]}  Nf6 {[%clk 0:00:11]} 46. Re5 {[%clk 0:00:23]}  Ng8 {[%clk 0:00:10]} 47. Re6 {[%clk 0:00:23]}  Nh6 {[%clk 0:00:02]} 48. Rxg6 {[%clk 0:00:20]}  Nf7+ {[%clk 0:00:03]} 49. Kh5 {[%clk 0:00:16]}  Ne5 {[%clk 0:00:03]} 50. Ra6 {[%clk 0:00:15]}  Nf3 {[%clk 0:00:04]} 51. h3 {[%clk 0:00:12]}  Ne5 {[%clk 0:00:04]} 52. Kg5 {[%clk 0:00:12]}  Nf7+ {[%clk 0:00:03]} 53. Kf4 {[%clk 0:00:12]}  Nh6 {[%clk 0:00:03]} 54. Ra7 {[%clk 0:00:12]}  Ng8 {[%clk 0:00:03]} 55. g4 {[%clk 0:00:12]}  Nf6 {[%clk 0:00:03]} 56. h4 {[%clk 0:00:12]}  Nd5+ {[%clk 0:00:04]} 57. Kg5 {[%clk 0:00:12]}  Nc3 {[%clk 0:00:03]} 58. Re7 {[%clk 0:00:12]}  Nd5 {[%clk 0:00:04]} 59. Re6 {[%clk 0:00:12]}  Nc7 {[%clk 0:00:03]} 60. Re5 {[%clk 0:00:12]}  Na8 {[%clk 0:00:04]} 61. h5 {[%clk 0:00:12]}  Nb6 {[%clk 0:00:04]} 62. Kf5 {[%clk 0:00:11]}  Nc4 {[%clk 0:00:04]} 63. Re6 {[%clk 0:00:11]}  Nd2 {[%clk 0:00:04]} 64. g5 {[%clk 0:00:11]}  Nf3 {[%clk 0:00:05]} 65. Re4 {[%clk 0:00:10]}  Nd2 {[%clk 0:00:04]} 66. Re8 {[%clk 0:00:10]} 1-0


[Site "https://www.chess.com"]

[Event "Titled Tuesday Blitz November 29 Early 2022"]
[White "Fawzy, Adham"]
[Black "Melian, Juan Sebastian"]
[WhiteFideId "10613129"]
[BlackFideId "3706575"]
[WhiteElo "2541"]
[BlackElo "2044"]
[Result "1-0"]
[Round "10"]
[TimeControl "180+1"]
[Date "2022.11.30"]
[WhiteClock "0:00:12"]
[BlackClock "0:00:15"]

1. e4 {[%clk 0:03:00]}  c5 {[%clk 0:02:59]} 2. Nf3 {[%clk 0:03:00]}  e6 {[%clk 0:02:59]} 3. d4 {[%clk 0:03:00]}  cxd4 {[%clk 0:03:00]} 4. Nxd4 {[%clk 0:03:01]}  a6 {[%clk 0:03:01]} 5. Bd3 {[%clk 0:02:39]}  Nf6 {[%clk 0:02:59]} 6. O-O {[%clk 0:02:34]}  d6 {[%clk 0:02:59]} 7. c4 {[%clk 0:02:24]}  g6 {[%clk 0:02:59]} 8. Nc3 {[%clk 0:02:20]}  Bg7 {[%clk 0:02:59]} 9. Be3 {[%clk 0:02:04]}  O-O {[%clk 0:02:59]} 10. Rc1 {[%clk 0:02:05]}  Qc7 {[%clk 0:02:59]} 11. f3 {[%clk 0:01:55]}  b6 {[%clk 0:02:56]} 12. Qd2 {[%clk 0:01:49]}  Bb7 {[%clk 0:02:55]} 13. Rfd1 {[%clk 0:01:34]}  Nbd7 {[%clk 0:02:54]} 14. Bf1 {[%clk 0:01:33]}  Rad8 {[%clk 0:02:35]} 15. b4 {[%clk 0:01:31]}  Ne5 {[%clk 0:02:34]} 16. Nb3 {[%clk 0:01:08]}  Rfe8 {[%clk 0:02:10]} 17. Na4 {[%clk 0:01:04]}  Nfd7 {[%clk 0:01:43]} 18. Qxd6 {[%clk 0:01:04]}  Qxd6 {[%clk 0:01:44]} 19. Rxd6 {[%clk 0:01:03]}  Bf8 {[%clk 0:01:44]} 20. Rdd1 {[%clk 0:01:01]}  Bxb4 {[%clk 0:01:41]} 21. Nxb6 {[%clk 0:01:01]}  Nxb6 {[%clk 0:01:41]} 22. Bxb6 {[%clk 0:00:59]}  Rc8 {[%clk 0:01:37]} 23. c5 {[%clk 0:00:49]}  Nc6 {[%clk 0:01:11]} 24. Rd7 {[%clk 0:00:43]}  Rb8 {[%clk 0:00:58]} 25. Rcd1 {[%clk 0:00:39]}  Bc8 {[%clk 0:00:47]} 26. Rc7 {[%clk 0:00:33]}  Ne5 {[%clk 0:00:46]} 27. h3 {[%clk 0:00:15]}  g5 {[%clk 0:00:46]} 28. Kf2 {[%clk 0:00:12]}  h5 {[%clk 0:00:45]} 29. a4 {[%clk 0:00:11]}  h4 {[%clk 0:00:44]} 30. a5 {[%clk 0:00:12]}  Ng6 {[%clk 0:00:43]} 31. Nd4 {[%clk 0:00:11]}  Ra8 {[%clk 0:00:32]} 32. Nc6 {[%clk 0:00:11]}  Kf8 {[%clk 0:00:32]} 33. Nxb4 {[%clk 0:00:11]}  Nf4 {[%clk 0:00:27]} 34. c6 {[%clk 0:00:11]}  Kg7 {[%clk 0:00:25]} 35. Bd4+ {[%clk 0:00:11]}  e5 {[%clk 0:00:26]} 36. Bb6 {[%clk 0:00:11]}  Be6 {[%clk 0:00:26]} 37. Nd5 {[%clk 0:00:11]}  Bxd5 {[%clk 0:00:26]} 38. exd5 {[%clk 0:00:12]}  e4 {[%clk 0:00:23]} 39. fxe4 {[%clk 0:00:12]}  Rxe4 {[%clk 0:00:23]} 40. Rd7 {[%clk 0:00:11]}  Rb4 {[%clk 0:00:24]} 41. c7 {[%clk 0:00:11]}  Rb2+ {[%clk 0:00:23]} 42. Kg1 {[%clk 0:00:11]}  Rc2 {[%clk 0:00:22]} 43. Rd8 {[%clk 0:00:11]}  Rxc7 {[%clk 0:00:11]} 44. Bxc7 {[%clk 0:00:11]}  Ra7 {[%clk 0:00:12]} 45. Bb6 {[%clk 0:00:11]}  Rb7 {[%clk 0:00:11]} 46. d6 {[%clk 0:00:11]}  Ne6 {[%clk 0:00:12]} 47. Rc8 {[%clk 0:00:11]}  Kf6 {[%clk 0:00:13]} 48. d7 {[%clk 0:00:12]}  Rxd7 {[%clk 0:00:10]} 49. Rxd7 {[%clk 0:00:11]}  g4 {[%clk 0:00:11]} 50. Bd8+ {[%clk 0:00:12]}  Kg7 {[%clk 0:00:12]} 51. hxg4 {[%clk 0:00:12]}  h3 {[%clk 0:00:11]} 52. Bc4 {[%clk 0:00:12]}  h2+ {[%clk 0:00:12]} 53. Kxh2 {[%clk 0:00:11]}  Kg6 {[%clk 0:00:13]} 54. Bxe6 {[%clk 0:00:11]}  f6 {[%clk 0:00:13]} 55. Bf5+ {[%clk 0:00:10]}  Kg5 {[%clk 0:00:13]} 56. Bxf6+ {[%clk 0:00:10]}  Kf4 {[%clk 0:00:13]} 57. Rc4+ {[%clk 0:00:10]}  Ke3 {[%clk 0:00:14]} 58. Rd3+ {[%clk 0:00:11]}  Ke2 {[%clk 0:00:14]} 59. Rc2+ {[%clk 0:00:11]}  Ke1 {[%clk 0:00:15]} 60. Rb3 {[%clk 0:00:12]}  Kd1 {[%clk 0:00:15]} 61. Rb1# {[%clk 0:00:12]} 1-0


[Site "https://www.chess.com"]